Cogmind - Beta 15 @@@ ROGUE MODE // 2025.07.06 @ 12:20:37 Player: Err. String Expected Got Nil Result: Self-destructed Performance ------------- Evolutions (1) 500 Regions Visited (2) 400 Robots Destroyed (20) 100 Value Destroyed (569) 569 Prototype IDs (0) 0 Alien Tech Used (0) 0 Bonus (0) 0 TOTAL SCORE: 1569 Bonus ------- None Cogmind --------- Core Integrity 298/400 Matter 256/300 Energy 99/100 System Corruption 0% Temperature Cool (0) Movement Walking (200) Ox1 Location -9/Materials Parts ------- > --- POWER (1) -------- (None) > --- PROPULSION (3) --- Titanium Leg Titanium Leg > --- UTILITY (3) ------ High-capacity Storage Unit Signal Interpreter > --- WEAPON (2) ------- Heavy Assault Rifle Heavy Assault Rifle > --- INVENTORY (20) --- Titanium Leg Improved Hover Unit Improved Hover Unit Small Storage Unit Large Matter Pod (54) Grenade Launcher Mining Laser Flail Peak State ------------ > --- POWER ------------ Improved Ion Engine > --- PROPULSION ------- Titanium Leg Titanium Leg Titanium Leg > --- UTILITY ---------- High-capacity Storage Unit Sensor Array Signal Interpreter > --- WEAPON ----------- Heavy Assault Rifle Heavy Assault Rifle > --- INVENTORY -------- Light Ion Engine Light Treads Improved Hover Unit Improved Hover Unit Small Storage Unit Large Matter Pod Heavy Assault Rifle Heavy Assault Rifle Grenade Launcher Mining Laser Flail [Rating: 19] Favorites ----------- Power Ion Engine Engine Ion Engine Propulsion Light Treads Treads Light Treads Leg Titanium Leg Utility Small Storage Unit Device Seismic Detector Storage Small Storage Unit Processor Signal Interpreter Weapon Heavy Assault Rifle Ballistic Gun Heavy Assault Rifle Launcher Grenade Launcher Special Weapon Mining Laser Build | -11 -10 -9 ------- Run | Yrd Mat Mat Slots Evolved 2 | . . 2 Power . | . . . Propulsion 1 | . . 1 Utility 1 | . . 1 Weapon . | . . . Parts Attached 23 | 7 9 7 Power 4 | 1 1 2 Engine 4 | 1 1 2 Core . | . . . Reactor . | . . . Propulsion 5 | 2 . 3 Treads 2 | 2 . . Leg 3 | . . 3 Wheel . | . . . Hover . | . . . Flight . | . . . Utility 5 | 2 2 1 Device 2 | 1 1 . Storage 2 | 1 . 1 Processor 1 | . 1 . Hackware . | . . . Protection . | . . . Artifact . | . . . Weapon 9 | 2 6 1 Energy Gun . | . . . Energy Cannon . | . . . Ballistic Gun 7 | 2 4 1 Ballistic Cannon . | . . . Launcher 1 | . 1 . Special Weapon 1 | . 1 . Impact Weapon . | . . . Slashing Weapon . | . . . Piercing Weapon . | . . . Special Melee Weapon . | . . . Unidentified Prototypes . | . . . Parts Lost 8 | . . 8 Power 3 | . . 3 Propulsion 2 | . . 2 Utility 1 | . . 1 Weapon 2 | . . 2 Highest Loss Streak 6 | . . 6 To Critical Strikes . | . . . Average Backups 6 | . 5 9 Power 1 | . 1 . Propulsion 1 | . 1 2 Utility 1 | . . 1 Weapon 2 | . 1 4 Tool/Special . | . . . Unused Backups 7 | . 2 5 Power . | . . . Propulsion 4 | . 1 3 Utility 1 | . . 1 Weapon 2 | . 1 1 Tool/Special . | . . . Average Slot Usage (%) 91 | . 97 82 Engine 12 | . 13 9 Treads 21 | . 27 11 Leg 2 | . . 6 Device 11 | . 13 9 Storage 12 | . 14 11 Processor 4 | . . 11 Ballistic Gun 24 | . 26 21 Peak Build Rating 19 | 7 10 19 Average Rating 9 | 5 8 12 On Entrance 5 | . 7 10 Naked Turns . | . . . Heaviest Build 54 | 15 17 54 Greatest Support 51 | 40 40 51 Greatest Overweight (x) 4 | . 4 3 Average Overweight (x) . | . . 1 Largest Inventory Capacity 20 | 8 8 20 Average Capacity 11 | 7 8 19 Most Carried 11 | 1 8 11 Average Carried 6 | . 5 9 Final Capacity 20 | 8 8 20 Final Carried 8 | 1 8 8 Class Distribution -------------------- 100% | Mutant Dominant Class ---------------- Mutant | -10/Materials Mutant | -9/Materials Resources | -11 -10 -9 ----------- Run | Yrd Mat Mat Matter Collected 1117 | 269 421 427 Remotely . | . . . Salvage Created 725 | 97 273 355 Parts 38 | 5 18 15 Haulers Intercepted . | . . . Recyclers Shooed 2 | . 1 1 Parts Field Recycled . | . . . Retrieved Matter . | . . . Parts Self-Destructed . | . . . Prevented . | . . . Kills | -11 -10 -9 ------- Run | Yrd Mat Mat Combat Hostiles Destroyed 16 | . 9 7 Guns 13 | . 7 6 AOE 3 | . 2 1 Classes Destroyed 7 | 2 2 3 Worker 2 | . . 2 Tunneler 1 | 1 . . Recycler 1 | 1 . . Swarmer 3 | . 3 . Grunt 9 | . 6 3 Duelist 1 | . . 1 Sentry 3 | . . 3 Best Kill Streak 4 | 1 3 4 Combat Bots Only 3 | . 3 3 Max Kills in Single Turn 3 | 1 2 3 Gunslinging . | . . . Exploded 2 | . 2 1 Melee . | . . . Uniques/NPCs Destroyed . | . . . Combat | -11 -10 -9 -------- Run | Yrd Mat Mat Hostile Shots Fired 128 | . 68 60 Missed 35 | . 19 16 Hits 93 | . 49 44 Melee 11 | . . 11 Projectile 82 | . 49 33 Critical Strikes 4 | . . 4 Damage Taken 1400 | . 573 827 Core 203 | . 101 102 Absorbed by Shields . | . . . Core Remaining (%) 79 | 100 59 . Volleys Fired 65 | 2 34 29 Largest 2 | 2 2 2 Hottest 100 | 40 100 46 Shots Fired 126 | 4 65 57 Gun 122 | 4 62 56 Cannon . | . . . Launcher 3 | . 2 1 Special 1 | . 1 . Kinetic 122 | 4 62 56 Thermal 1 | . 1 . Explosive 3 | . 2 1 Electromagnetic . | . . . Robot Hit Streak 13 | 2 13 11 Robot Miss Streak 3 | . 3 3 Penetration Max . | . . . Secondary Targets 1 | . 1 . Max Gunslinging Chain 1 | . 1 . Shots Hit Robots 87 | 2 45 40 Core Hits 33 | 2 16 15 Critical Kills . | . . . Critical Parts Destroyed . | . . . Critical Strikes . | . . . Melee Attacks . | . . . Impact . | . . . Slashing . | . . . Piercing . | . . . Sneak Attacks . | . . . Combat Hostiles . | . . . Follow-up Attacks . | . . . Damage Inflicted 1504 | 28 783 693 Guns 1217 | 28 618 571 Cannons . | . . . Explosions 287 | . 165 122 Melee . | . . . Ramming . | . . . Kinetic 1217 | 28 618 571 Thermal . | . . . Explosive 287 | . 165 122 Electromagnetic . | . . . Impact . | . . . Slashing . | . . . Piercing . | . . . Highest Corruption 1 | . 1 . Average Corruption 1 | . 1 . Corruption Purged . | . . . Corruption Blocked . | . . . Effects 4 | . 4 . Message Errors 1 | . 1 . Matter Fused 1 | . 1 . Energy Discharges 1 | . 1 . Alerts 1 | . 1 . Overload Shots . | . . . Overflow Damage . | . . . Projectiles . | . . . Explosions . | . . . Melee . | . . . Knockbacks . | . . . Impact . | . . . Kinetic . | . . . Secondary . | . . . Self-Inflicted Damage 31 | . 31 . Shots 1 | . 1 . Rammed 1 | . 1 . Targets Rammed 1 | . 1 . Kicked . | . . . Crushed . | . . . Highest Temperature 20 | . 20 6 Average Temperature 2 | . 2 2 Received Heat Transfer 414 | . 237 177 Siege Activations . | . . . Martial Activations . | . . . Shielding Activations . | . . . Robots Disrupted . | . . . Combat Hostiles . | . . . Robots Corrupted . | . . . Combat Hostiles . | . . . Parts Fried . | . . . Impact Corruptions . | . . . Robots Melted . | . . . Combat Hostiles . | . . . Parts Melted . | . . . Heat Transferred . | . . . Parts Sabotaged . | . . . Parts Stolen . | . . . Parts Stripped . | . . . Power Chain Reactions . | . . . Alert | -11 -10 -9 ------- Run | Yrd Mat Mat Maximum Alert Level . | . . . Low Security (%) 100 | 100 100 100 Level 1 . | . . . Level 2 . | . . . Level 3 . | . . . Level 4 . | . . . Level 5 . | . . . High Security . | . . . Max Security . | . . . Peak Influence 119 | 5 119 101 Initial 40 | . . 40 Average 21 | . 25 22 Influence Increases 543 | 10 271 262 Destroy 0b10 Robot/C 320 | . 180 140 Destroy 0b10 Robot/NC 20 | 10 . 10 Destroy Leader 80 | . 40 40 Successful Hack 12 | . 6 6 Disable Machine 15 | . 15 . Destroy Structure 21 | . 15 6 Lose Combat Pursuer 75 | . 15 60 Influence Decreases 442 | 10 173 259 Entered New Map 58 | . . 58 Time Decay 324 | 10 173 141 Lost Part 60 | . . 60 Squads Dispatched 1 | . 1 . Investigation . | . . . Extermination . | . . . Reinforcement 1 | . 1 . Assault . | . . . Garrison . | . . . Intercept . | . . . Searches Triggered . | . . . Construction Impeded . | . . . Haulers Reinforced . | . . . Active Scanning Responses . | . . . Cargo Convoy Interrupts . | . . . Stealth | -11 -10 -9 --------- Run | Yrd Mat Mat Distress Signals 3 | . 1 2 Communications Jammed . | . . . Distress Signals . | . . . Times Spotted 29 | . 15 14 Peak Tracking Total 6 | . 4 6 Tactical Retreats 3 | . 1 2 Traps | -11 -10 -9 ------- Run | Yrd Mat Mat Traps Triggered 5 | . 5 . Indirectly . | . . . Trap Hack Attempts . | . . . Triggered . | . . . Disarmed . | . . . Reprogrammed . | . . . Reused . | . . . Traps Extracted . | . . . Installed . | . . . Triggered . | . . . Machines | -11 -10 -9 ---------- Run | Yrd Mat Mat Machines Disabled 1 | . 1 . Max in Single Turn 1 | . 1 . Machines Repaired . | . . . Machines Dismantled . | . . . Machines Sabotaged . | . . . Overloaded Fab Kills . | . . . Hacking | -11 -10 -9 --------- Run | Yrd Mat Mat Machines Accessed 4 | . 2 2 Terminals 4 | . 2 2 Fabricators . | . . . Repair Stations . | . . . Recycling Units . | . . . Scanalyzers . | . . . Garrison Access . | . . . Total Hacks 13 | . 5 8 Successful 3 | . 1 2 Failed 10 | . 4 6 Catastrophic . | . . . Database Lockouts . | . . . Manual 8 | . 5 3 Terminals 13 | . 5 8 Fabricators . | . . . Repair Stations . | . . . Recycling Units . | . . . Scanalyzers . | . . . Garrison Access . | . . . Terminal Hacks 1 | . . 1 Terminal Index 1 | . . 1 Fabricator Hacks . | . . . Repair Station Hacks . | . . . Recycling Unit Hacks . | . . . Scanalyzer . | . . . Garrison Access Hacks . | . . . Unauthorized Hacks 2 | . 1 1 Terminals 2 | . 1 1 Operators 2 | . 1 1 Fabricators . | . . . Repair Stations . | . . . Recycling Units . | . . . Scanalyzers . | . . . Garrison Access . | . . . Data Cores Recovered . | . . . Used . | . . . Hacking Detections 4 | . 2 2 Full Trace Events . | . . . Feedback Events . | . . . Feedback Blocked . | . . . Robot Schematics Acquired . | . . . Robots Built . | . . . Authchips . | . . . Time . | . . . Total Robot Build Rating . | . . . Part Schematics Acquired . | . . . Parts Built . | . . . Authchips . | . . . Time . | . . . Total Part Build Rating . | . . . Parts Repaired . | . . . Time . | . . . Parts Recycled . | . . . Recycled Matter . | . . . Retrieved Matter . | . . . Retrieved Components . | . . . Parts Scanalyzed . | . . . Part Schematics Acquired . | . . . Parts Damaged . | . . . Bothacking | -11 -10 -9 ------------ Run | Yrd Mat Mat Used RIF Installer . | . . . Robots Hacked . | . . . Non-combat . | . . . Combat . | . . . Robot Hacks Applied . | . . . Relay Couplers Released . | . . . Fabnet Peak Effective % . | . . . Robots Rewired . | . . . Allies Hacked . | . . . Hacks Repelled . | . . . Allies | -11 -10 -9 -------- Run | Yrd Mat Mat Total Allies . | . . . Largest Group . | . . . Highest-Rated Group . | . . . Highest-Rated Ally . | . . . Total Orders . | . . . Ally Attacks . | . . . Total Damage . | . . . Kills . | . . . Allies Corrupted . | . . . Allies Melted . | . . . Intel | -11 -10 -9 ------- Run | Yrd Mat Mat Active Infowar (turns) 1499 | 81 886 532 Sensors 559 | . 27 532 Seismic 940 | 81 859 . Robot Analysis Total . | . . . Derelict Logs Recovered . | . . . Drone Launches . | . . . Drone Recoveries . | . . . Exploration | -11 -10 -9 ------------- Run | Yrd Mat Mat Turns Passed 1684 | 161 932 591 Spaces Moved 693 | 87 422 184 Core 8 | 2 6 . Treads 646 | 85 416 145 Legs 39 | . . 39 Wheels . | . . . Hover . | . . . Flight . | . . . Fastest Speed 50 | 50 100 130 Average Speed 184 | 157 160 251 Slowest Speed 340 | 160 250 340 Overloaded Moves . | . . . Propulsion Burnouts . | . . . Robots Hopped . | . . . Potential Cave-ins . | . . . Cave-ins Triggered . | . . . Exploration Rate (%) 32 | 6 68 24 Regions Visited 2 Branch Regions . Pre-discovered Areas . | . . . Known Exits Taken 1 | . 1 . Unknown Exits Taken 1 | 1 . . Scrap Searched . | . . . Spaces Dug 6 | . 6 . Terrain Destroyed 19 | . 14 5 Melee . | . . . Projectile . | . . . AOE 19 | . 14 5 Terrain Rammed . | . . . Walls Destroyed . | . . . Machines Disabled . | . . . Actions | -11 -10 -9 --------- Run | Yrd Mat Mat Total 962 | 104 606 252 Wait 139 | 8 114 17 Move 691 | 86 421 184 Hop . | . . . Pick Up 16 | 1 10 5 Fast Attach 22 | 7 10 5 Attach 5 | . . 5 Detach 1 | . . 1 Swap 13 | . 9 4 Drop 9 | . 7 2 Fire 65 | 2 34 29 Melee . | . . . Ram . | . . . Kick . | . . . Crush 1 | . 1 . Escape Stasis . | . . . Rewire . | . . . Trap . | . . . Miscellaneous . | . . . Route ------- -11/Scrapyard -10/Materials (discovered 4 exits: *Mat x3 / [*Min]) -9/Materials History --------- Turn | Location | Event 18 | -11/Scrapyard | Discovered new exit (range 15) 162 | -11/Scrapyard | Entered Materials 279 | -10/Materials | Discovered new exit (range 3) 326 | -10/Materials | Discovered new exit (range 16) 343 | -10/Materials | Build established: Mutant 727 | -10/Materials | Discovered new exit (range 4) 1056 | -10/Materials | Discovered new exit (range 8) 1073 | -10/Materials | Identified exit to Materials 1094 | -10/Materials | Entered another Materials area 1094 | -9/Materials | Evolved 2 slots: Propulsion x1, Utility x1 1685 | -9/Materials | Self-destructed Last Messages --------------- 01590_ K-01 Serf collects debris. 01593_ Acquired 50 matter. 01593_ K-01 Serf collects debris. 01599_ Imp. Ion Engine destroyed. 01601_ K-01 Serf collects debris. 01621_ Titanium Leg severed. 01626_ Sensor Array destroyed. 01628_ Destroyed Imp. Aluminum Leg. 01634_ Lgt. Ion Engine destroyed. 01640_ Destroyed Imp. Ion Engine. 01643_ L-31 Rogue destroyed. 01646_ Acquired Titanium Leg. 01654_ Hvy. Assault Rifle destroyed. 01657_ Titanium Leg destroyed. 01657_ Hvy. Assault Rifle destroyed. 01658_ Y-45 Defender destroyed. 01664_ G-34 Mercenary destroyed. 01670_ Acquired Titanium Leg. 01673_ Acquired 58 matter. 01677_ Acquired 37 matter. Map ----- +----------------------------------------------------+ | # """ #??# + #??????????????? | | ########??# # #???????????????? | | ##################### #???????????????? | | #???????????????? | | ######################## #####???????????? | | ?????????############### !!#???????????? | | ???????? T !!#???????????? | | ????????? * =#???????????? | | ??????????" #???????????? | | ??????????"" !!#???????????? | | ??????????"" !!#???????????? | | ?????????""" [####???????????? | | ?????? """ % #??????????????? | | ?????? ####### %#??????????????? | | ????? #?????## ##??????????????? | | ??????# ^ #??????# #???????????????? | | ??????# #?????? #??????????????? | | ??????# ^ #?????# #??????????????? | | ??????# #?????# #??????????????? | | ??????###############[#?????# #??????????????? | | ????????????????????#%#?????# #??????????????? | | ???????????????######+######## ##??????????????? | | ???????????????# ! * # #???????????????? | | ???????????????# """!""" """ + #???????????????? | | ???????????????# """=""" "T" # #???????????????? | | ???????????????# """ """ @ # %#???????????????? | | ???????????????# # ???????????????? | | ???????????????# # ???????????????? | | ???????????????########## #### ???????????????? | | ????????????????????????###???#+#????????????????? | | ?????????????????????????????????????????????????? | | ?????????????????????????????????????????????????? | | ?????????????????????????????????????????????????? | | ?????????????????????????????????????????????????? | | ?????????????????????????????????????????????????? | | ?????????????????????????????????????????????????? | | ?????????????????????????????????????????????????? | | ?????????????????????????????????????????????????? | | ?????????????????????????????????????????????????? | | ?????????????????????????????????????????????????? | | ?????????????????????????????????????????????????? | | ?????????????????????????????????????????????????? | | ?????????????????????????????????????????????????? | | ?????????????????????????????????????????????????? | | ?????????????????????????????????????????????????? | | ?????????????????????????????????????????????????? | | ?????????????????????????????????????????????????? | | ?????????????????????????????????????????????????? | | ?????????????????????????????????????????????????? | | ?????????????????????????????????????????????????? | +----------------------------------------------------+ Best States ------------- Heat Dissipation 28 Energy Generation 12 Energy Capacity 265 Matter Stores 300 Matter Capacity 300 Sight Range 16 Robot Scan Range 14 Terrain Scan Density 10 Evasion (%) 50 Recoil Reduction 2 Item Schematics ----------------- None Robot Schematics ------------------ None Fabricated ------------ Nothing Repaired ---------- Nothing Alien Tech Used ----------------- None Achievements -------------- None Challenges ------------ None Game ------ Seed DisruptorChromaticScythe Manual? 0 Play Time 00:14:33 Cumulative 83.9 hours Start 2025.07.06 @ 12:08:02 End 2025.07.06 @ 12:20:37 Sessions 1 Manual Loads 0 Difficulty Rogue Special Mode None Game No. 69 Rogue 69 Adventurer 0 Explorer 0 Win Type - Total 2 Types 2/0/0/0/0/0/0/0/0/0 Lore% 41 Gallery% 40 Achievement% 44 Wizard Run 0 Options --------- Layout 2 ASCII 0 Keyboard 1 Movement Numpad Keybinds 0 Fullscreen 2 Font 32/SmallcapsGlow Map View 50x44 Zoom Use 0% Tactical HUD 1 Map Filters NONE Filters NONE Steam 1 RUN: 2b677683-b95c-464a-a8ca-7a025f13ecc1